bitfinex/quotes_BTCUSD_20250716
["timestamp","ask_amount","ask_price","bid_price","bid_amount"]
[1752661172717,0.20658572,119260.0,119250.0,0.29435133]
[1752661172940,0.65078201,119260.0,119250.0,0.08566161]
[1752661173156,0.65078201,119260.0,119250.0,0.21358161]
[1752661175982,0.21184572,119260.0,119250.0,0.21358161]
[1752661176197,0.65078201,119260.0,119250.0,0.21358161]
[1752661177706,0.21184572,119260.0,119250.0,0.21358161]
[1752661179342,0.18134572,119260.0,119250.0,0.21571161]
[1752661179558,0.17818572,119260.0,119250.0,0.6546479]
[1752661180464,0.18128572,119260.0,119250.0,0.21571161]
[1752661181093,0.21288572,119260.0,119250.0,0.21358161]
[1752661182602,0.17608572,119260.0,119250.0,0.6577979]
[1752661184256,0.17608572,119260.0,119250.0,0.86609838]
[1752661184453,0.17608572,119260.0,119250.0,0.86609845]
[1752661184866,0.17608572,119260.0,119250.0,0.87448405]
[1752661185089,0.00838468,119260.0,119250.0,0.89125476]
[1752661185301,0.02515398,119260.0,119250.0,0.89125483]
[1752661185511,0.20123984,119260.0,119250.0,0.89125483]
[1752661185732,0.02515398,119260.0,119250.0,0.88286951]
[1752661185947,0.20962474,119260.0,119250.0,0.89125476]
[1752661186179,0.03353888,119260.0,119250.0,0.89125476]
[1752661187249,0.01676915,119260.0,119250.0,0.89125476]
[1752661187484,0.00838447,119260.0,119250.0,0.89125476]
[1752661187699,0.03353881,119260.0,119250.0,0.89125476]
[1752661187905,0.03353881,119260.0,119250.0,1.18545476]
[1752661189205,0.02515391,119260.0,119250.0,1.18545476]
[1752661189625,0.02515383,119260.0,119250.0,1.18545476]
[1752661189837,0.20962459,119260.0,119250.0,0.74651847]
[1752661190072,0.20962459,119260.0,119250.0,1.1854549]
[1752661190927,0.20962459,119260.0,119250.0,1.19384022]
[1752661191139,0.20962459,119260.0,119250.0,1.19584022]
[1752661191547,0.20124012,119260.0,119250.0,1.19584022]
[1752661193379,0.0083844,119260.0,119250.0,1.17906867]
[1752661194176,0.01038377,119270.0,119260.0,0.21623984]
[1752661194380,0.02715194,119270.0,119260.0,0.87081641]
[1752661194582,0.02715194,119270.0,119260.0,0.87396641]
[1752661194982,0.0355362,119270.0,119260.0,0.87396641]
[1752661195551,0.21160729,119270.0,119260.0,0.86558187]
[1752661195772,0.20322352,119270.0,119260.0,0.42664558]
[1752661195982,0.19483954,119270.0,119260.0,0.85058201]
[1752661196396,0.18645535,119270.0,119260.0,0.85058201]
[1752661196825,0.18645535,119270.0,119260.0,0.41164572]
[1752661197043,0.18645535,119270.0,119260.0,0.85058201]
[1752661197615,0.18850535,119270.0,119260.0,0.85058201]
[1752661199291,0.18645535,119270.0,119260.0,0.85896669]
[1752661199842,0.01876824,119270.0,119260.0,1.16155123]
[1752661200060,0.01876824,119270.0,119260.0,1.17755123]
[1752661200275,0.19483884,119270.0,119260.0,1.16916669]
[1752661200705,0.19483884,119270.0,119260.0,1.16078201]
[1752661200887,0.19483884,119270.0,119260.0,1.14478201]
[1752661201090,0.17807095,119270.0,119260.0,1.12801243]
[1752661201945,0.17807095,119270.0,119260.0,0.96031161]
[1752661202167,0.17173676,119270.0,119260.0,0.96031161]
[1752661203039,0.17173676,119270.0,119260.0,1.12801243]
[1752661204206,0.17173676,119270.0,119260.0,0.68907614]
[1752661204415,0.17173676,119270.0,119260.0,1.14478215]
[1752661204630,0.16968676,119270.0,119260.0,1.1447823]
[1752661205251,0.16968676,119270.0,119260.0,0.69746111]
[1752661205468,0.16968676,119270.0,119260.0,1.1363974]
[1752661205684,0.16968676,119270.0,119260.0,0.69746111]
[1752661205900,0.16968676,119270.0,119260.0,1.1363974]
[1752661206745,0.16968676,119270.0,119260.0,1.14478215]
[1752661206982,0.16968676,119270.0,119260.0,0.51299028]
[1752661207209,0.17173676,119270.0,119260.0,0.38184028]
[1752661207422,0.17483676,119270.0,119260.0,0.50976028]
[1752661207941,0.19053676,119270.0,119260.0,0.50976028]
[1752661208562,0.17483676,119270.0,119260.0,0.50976028]
[1752661208765,0.17173676,119270.0,119260.0,0.50976028]
[1752661209920,0.17173676,119270.0,119260.0,0.51274028]
[1752661211134,0.17173676,119270.0,119260.0,0.95167657]
[1752661211592,0.16968676,119270.0,119260.0,1.12776243]
[1752661211808,0.16968676,119270.0,119260.0,1.14386243]
[1752661212243,0.16968676,119270.0,119260.0,0.96777657]
[1752661212666,0.16968676,119270.0,119260.0,1.13547739]
[1752661212814,0.16968676,119270.0,119260.0,0.96777657]
[1752661213403,0.16968676,119270.0,119260.0,0.95167657]
[1752661215995,0.16968676,119270.0,119260.0,1.12776243]
[1752661216224,0.16968676,119270.0,119260.0,1.14396243]
[1752661216480,0.16968676,119270.0,119260.0,0.97626161]
[1752661216739,0.16968676,119270.0,119260.0,1.14396243]
[1752661217484,0.17807109,119270.0,119260.0,1.16073216]
[1752661217962,0.17807109,119270.0,119260.0,1.17573216]
[1752661218218,0.17807109,119270.0,119260.0,1.04781216]
[1752661218463,0.17807109,119270.0,119260.0,1.17573216]
[1752661218712,0.01038391,119270.0,119260.0,1.19250145]
[1752661218911,0.19483884,119270.0,119260.0,1.19250145]
[1752661219128,0.02715208,119270.0,119260.0,1.19250145]
[1752661219819,0.20322254,119270.0,119260.0,1.18411691]
[1752661220070,0.19483884,119270.0,119260.0,1.17573216]
[1752661220305,0.18645493,119270.0,119260.0,1.17573216]
[1752661220827,0.18645493,119270.0,119260.0,1.18411691]
[1752661221895,0.17807095,119270.0,119260.0,1.17573216]
[1752661223631,0.17807095,119270.0,119260.0,0.73679587]
[1752661223822,0.17807095,119270.0,119260.0,1.17573216]
[1752661224063,0.17807095,119270.0,119260.0,1.15896243]
[1752661224280,0.16968676,119270.0,119260.0,1.1757323]
[1752661224521,0.16968676,119270.0,119260.0,0.73679601]
[1752661224724,0.16968676,119270.0,119260.0,1.1757323]
[1752661226433,0.16968676,119270.0,119260.0,0.82375657]
[1752661226647,0.17166676,119270.0,119260.0,0.50972028]
[1752661227133,0.17166676,119270.0,119260.0,0.84180597]
[1752661228571,0.17166676,119270.0,119260.0,0.51270028]
[1752661228794,0.17166676,119270.0,119260.0,0.84180597]
[1752661229417,0.16968676,119270.0,119260.0,0.84180597]
[1752661231127,0.16968676,119270.0,119260.0,0.97631607]
[1752661232207,0.16968676,119270.0,119260.0,0.53753549]
[1752661232409,0.16968676,119270.0,119260.0,0.97631607]
[1752661233749,0.16968676,119270.0,119260.0,0.53753549]
[1752661233963,0.16968676,119270.0,119260.0,0.97631607]
[1752661234164,0.16968676,119270.0,119260.0,1.18310186]
[1752661234374,0.16968676,119270.0,119260.0,1.19148676]
[1752661235416,0.1948394,119270.0,119260.0,1.19987144]
[1752661236424,0.002,119270.0,119260.0,1.21664059]
[1752661236642,0.20322296,119270.0,119260.0,1.21664059]
[1752661236846,0.21160729,119270.0,119260.0,1.21664059]
[1752661237174,0.21160729,119270.0,119260.0,1.20825605]
[1752661237373,0.0355362,119270.0,119260.0,1.20825605]
[1752661237776,0.20322296,119270.0,119260.0,1.20825605]
[1752661237983,0.20322296,119270.0,119260.0,1.21664059]
[1752661238379,0.01876775,119270.0,119260.0,1.21664059]
[1752661238595,0.02715187,119270.0,119260.0,1.21664059]
[1752661239833,0.01876775,119270.0,119260.0,1.21664059]
[1752661240397,0.03553606,119270.0,119260.0,1.21664059]
[1752661240622,0.0271518,119270.0,119260.0,1.21664059]
[1752661240830,0.01876775,119270.0,119260.0,1.21664059]
[1752661241238,0.02715194,119270.0,119260.0,1.21664059]
[1752661241882,0.02715194,119270.0,119260.0,0.77786001]
[1752661242118,0.02715194,119270.0,119260.0,1.21664059]
[1752661242119,0.01876775,119270.0,119260.0,1.21664059]
[1752661242317,0.02715194,119270.0,119260.0,1.21664059]
[1752661242968,0.0355362,119270.0,119260.0,1.21664059]
[1752661244465,0.02715194,119270.0,119260.0,1.21664059]
[1752661244641,0.01038377,119270.0,119260.0,1.21664059]
[1752661244856,0.01876775,119270.0,119260.0,1.21664059]
[1752661245077,0.20322296,119270.0,119260.0,1.21664059]
[1752661245443,0.20322296,119270.0,119260.0,1.19987144]
[1752661247834,0.20322296,119270.0,119260.0,1.20825605]
[1752661250460,0.03553613,119270.0,119260.0,1.21664059]
[1752661251558,0.20322289,119270.0,119260.0,1.21664059]
[1752661252310,0.03553613,119270.0,119260.0,1.21664059]
[1752661252865,0.01876775,119270.0,119260.0,1.21664059]
[1752661253054,0.01876775,119270.0,119260.0,1.43590415]
[1752661253552,0.02715187,119270.0,119260.0,1.43590415]
[1752661253739,0.01876775,119270.0,119260.0,1.43590415]
[1752661253883,0.0271518,119270.0,119260.0,1.43590415]
[1752661254086,0.01876775,119270.0,119260.0,1.43590415]
[1752661254298,0.02715187,119270.0,119260.0,1.43590415]
[1752661254702,0.01876775,119270.0,119260.0,1.43590415]
[1752661255180,0.0271518,119270.0,119260.0,1.43590415]
[1752661256171,0.01876775,119270.0,119260.0,1.43590415]
[1752661256648,0.002,119270.0,119260.0,1.58590415]
[1752661256864,0.002,119270.0,119260.0,1.61106815]
[1752661257103,0.002,119270.0,119260.0,1.31686815]
[1752661257608,0.002,119270.0,119260.0,1.64589022]
[1752661257823,0.00030835,119270.0,119260.0,2.44334822]
[1752661258227,0.00030835,119270.0,119260.0,1.64589022]
[1752661258439,0.00030835,119270.0,119260.0,3.89418122]
[1752661259332,0.00030835,119270.0,119260.0,7.68595643]
[1752661259538,0.00030835,119270.0,119260.0,7.77420643]
[1752661259749,0.00030835,119270.0,119260.0,7.82420643]
[1752661259948,0.00030835,119270.0,119260.0,6.83714022]
[1752661260150,0.00030835,119270.0,119260.0,7.82120643]
[1752661260583,0.00030835,119270.0,119260.0,7.82620643]
[1752661260881,0.00030835,119270.0,119260.0,7.82120643]
[1752661261081,0.00030835,119270.0,119260.0,6.73097507]
[1752661264322,0.99224883,119290.0,119280.0,1.25112381]
[1752661264538,0.99224883,119290.0,119280.0,2.50176309]
[1752661264753,0.99224883,119290.0,119280.0,2.50493309]
[1752661265485,0.99224883,119290.0,119280.0,3.21763609]
[1752661266580,0.99224883,119290.0,119280.0,3.36285609]
[1752661266777,0.99224883,119290.0,119280.0,3.36785609]
[1752661267641,0.99224883,119290.0,119280.0,3.63819109]
[1752661267859,0.99224883,119290.0,119280.0,3.53555509]
[1752661268082,0.99224883,119290.0,119280.0,3.40771509]
[1752661268302,0.99224883,119290.0,119280.0,3.31415709]
[1752661268468,0.99224883,119290.0,119280.0,2.60697909]
[1752661268722,0.99224883,119290.0,119280.0,2.92115909]
[1752661269101,0.99224883,119290.0,119280.0,1.49977109]
[1752661269334,0.99224883,119290.0,119280.0,3.03686609]
[1752661269542,0.99224883,119290.0,119280.0,3.45833609]
[1752661269686,0.99224883,119290.0,119280.0,2.56740009]
[1752661270694,0.99224883,119290.0,119280.0,2.68791909]
[1752661271230,0.99224883,119290.0,119280.0,1.06132056]
[1752661271486,0.99224883,119290.0,119280.0,1.17042956]
[1752661271707,0.99224883,119290.0,119280.0,1.14527256]
[1752661272925,0.99224883,119290.0,119280.0,0.70682203]
[1752661273093,0.99224883,119290.0,119280.0,1.14527256]
[1752661273678,0.99224883,119290.0,119280.0,1.58372309]
[1752661274270,0.98218902,119290.0,119280.0,1.58372309]
[1752661280556,0.98218902,119290.0,119280.0,1.60888009]
[1752661284331,0.97212925,119290.0,119280.0,1.60888009]
[1752661284704,0.97212925,119290.0,119280.0,2.98535509]
[1752661284913,0.97212925,119290.0,119280.0,2.98116409]
[1752661285436,0.97212925,119290.0,119280.0,2.96863709]
[1752661285877,0.97212925,119290.0,119280.0,2.40950509]
[1752661286062,0.97212925,119290.0,119280.0,2.32758609]
[1752661286575,0.97212925,119290.0,119280.0,2.15347309]
[1752661286854,0.97212925,119290.0,119280.0,2.12831609]
[1752661287058,0.97212925,119290.0,119280.0,2.32947609]
[1752661287202,0.97212925,119290.0,119280.0,2.04790509]
[1752661287403,0.97212925,119290.0,119280.0,1.98296009]
[1752661287617,0.97212925,119290.0,119280.0,1.93826009]
[1752661287822,0.97212925,119290.0,119280.0,1.92216009]
[1752661288253,0.97212925,119290.0,119280.0,1.93796009]
[1752661288455,0.9520097,119290.0,119280.0,1.93796009]
[1752661288740,1.0014445,119290.0,119280.0,1.20125456]
[1752661288950,1.18905872,119290.0,119280.0,0.75386989]
[1752661289144,1.18905936,119290.0,119280.0,1.19232056]
[1752661289354,1.18905936,119290.0,119280.0,1.20070398]
[1752661289535,1.18905936,119290.0,119280.0,1.20908733]
[1752661289738,1.18905936,119290.0,119280.0,1.21747061]
[1752661289938,1.18067643,119290.0,119280.0,1.21746991]
[1752661290416,1.17229357,119290.0,119280.0,1.21746991]
[1752661290613,1.18067636,119290.0,119280.0,1.21746991]
[1752661290965,1.18067636,119290.0,119280.0,1.20908677]
[1752661291165,1.18905929,119290.0,119280.0,1.20908677]
[1752661291368,1.18067636,119290.0,119280.0,1.20908677]
[1752661291586,1.18067636,119290.0,119280.0,1.21746991]
[1752661291766,1.18905922,119290.0,119280.0,1.20908677]
[1752661291999,1.00463493,119290.0,119280.0,1.21746991]
[1752661292210,1.01301715,119290.0,119280.0,1.21746991]
[1752661292950,1.02139987,119290.0,119280.0,1.21746991]
[1752661293575,1.18905851,119290.0,119280.0,1.21746991]
[1752661294043,1.18905908,119290.0,119280.0,1.19232028]
[1752661294301,1.18067657,119290.0,119280.0,1.18393714]
[1752661294493,1.18067657,119290.0,119280.0,1.19232063]
[1752661294728,1.00463507,119290.0,119280.0,1.20070398]
[1752661294896,1.00463507,119290.0,119280.0,1.20908712]
[1752661295614,1.00463479,119290.0,119280.0,1.20908712]
[1752661296027,1.18067622,119290.0,119280.0,0.76225345]
[1752661296443,1.16391113,119290.0,119280.0,0.41943028]
[1752661297105,1.16391113,119290.0,119280.0,0.85788081]
[1752661297492,1.16391113,119290.0,119280.0,0.41943028]
[1752661298110,1.16391113,119290.0,119280.0,0.29167028]
[1752661298356,1.16391113,119290.0,119280.0,0.41943028]
[1752661299735,1.16391113,119290.0,119280.0,0.85788081]
[1752661308325,1.16391113,119290.0,119280.0,0.41943028]
[1752661310527,1.16391113,119290.0,119280.0,0.41443028]
[1752661310733,1.16391113,119290.0,119280.0,0.85288081]
[1752661310942,1.16391113,119290.0,119280.0,0.85588081]
[1752661312801,1.16374346,119290.0,119280.0,0.85588081]
[1752661316753,1.16374346,119290.0,119280.0,0.41743028]
[1752661317013,1.16374346,119290.0,119280.0,0.85588081]
[1752661322600,0.98537256,119290.0,119280.0,1.51607081]
[1752661322823,1.1530312,119290.0,119280.0,1.52445416]
[1752661323052,0.98537249,119290.0,119280.0,1.53283737]
[1752661323472,0.98537242,119290.0,119280.0,1.54122051]
[1752661323811,0.98537242,119290.0,119280.0,1.10276998]
[1752661324413,0.96860684,119290.0,119280.0,1.54122051]
[1752661324656,0.98537221,119290.0,119280.0,1.54122051]
[1752661325170,1.16141378,119290.0,119280.0,1.10276998]
[1752661325613,1.16141378,119290.0,119280.0,1.09438684]
[1752661325826,1.15303141,119290.0,119280.0,1.069237]
[1752661326055,1.13841639,119290.0,119280.0,1.328207]
[1752661328275,0.96022482,119290.0,119280.0,1.35492035]
[1752661328492,0.9686074,119290.0,119280.0,0.94085296]
[1752661328717,0.9686074,119290.0,119280.0,1.37930349]
[1752661328942,0.9602244,119290.0,119280.0,1.37930349]
[1752661329174,0.96022432,119290.0,119280.0,1.37930349]
[1752661329379,0.96860684,119290.0,119280.0,1.81775402]
[1752661329593,0.97698935,119290.0,119280.0,1.81775402]
[1752661329806,0.97698935,119290.0,119280.0,1.37930349]
[1752661330033,0.9602244,119290.0,119280.0,1.81775402]
[1752661330328,0.95184203,119290.0,119280.0,1.81775402]
[1752661330548,0.95184203,119290.0,119280.0,3.53995102]
[1752661331401,0.95184203,119290.0,119280.0,3.51658302]
[1752661333110,0.95184203,119290.0,119280.0,3.54174002]
[1752661333527,0.95184203,119290.0,119280.0,3.40808702]
[1752661339933,0.95184203,119290.0,119280.0,4.07227602]
[1752661340170,0.95184203,119290.0,119280.0,3.99553002]
[1752661340553,0.95184203,119290.0,119280.0,3.71311202]
[1752661341049,0.95184203,119290.0,119280.0,3.78379202]
[1752661342107,0.95184203,119290.0,119280.0,4.21797402]
[1752661342313,0.95184203,119290.0,119280.0,3.98797402]
[1752661342515,0.95184203,119290.0,119280.0,3.88338102]
[1752661343079,0.95184203,119290.0,119280.0,4.17004102]
[1752661343480,0.95184203,119290.0,119280.0,4.14779002]
[1752661343665,0.95184203,119290.0,119280.0,4.04747702]
[1752661343933,0.95184203,119290.0,119280.0,3.52075302]
[1752661344141,0.95184203,119290.0,119280.0,3.13106602]
[1752661345212,0.95184203,119290.0,119280.0,3.29335002]
[1752661346046,0.95184203,119290.0,119280.0,3.85510902]
[1752661346810,0.95184203,119290.0,119280.0,3.90510902]
[1752661346951,0.95184203,119290.0,119280.0,3.99337902]
[1752661347155,0.95184203,119290.0,119280.0,6.89287102]
[1752661347614,0.65764203,119290.0,119280.0,6.88987102]
[1752661348446,0.65764203,119290.0,119280.0,6.83987102]
[1752661348667,0.65764203,119290.0,119280.0,6.88987102]
[1752661349027,0.65764203,119290.0,119280.0,6.89487102]
[1752661351138,0.65764203,119290.0,119280.0,6.87357602]
[1752661351344,0.65764203,119290.0,119280.0,6.64357602]
[1752661352246,0.65764203,119290.0,119280.0,6.87365302]
[1752661353232,0.65764203,119290.0,119280.0,6.89487102]
[1752661354263,0.65764203,119290.0,119280.0,1.89487102]
[1752661354490,0.65764203,119290.0,119280.0,7.38332155]
[1752661354714,0.008,119310.0,119300.0,1.25209147]
[1752661354924,0.008,119310.0,119300.0,4.45002175]
[1752661355117,0.008,119310.0,119300.0,4.50002175]
[1752661355390,0.008,119310.0,119300.0,6.83995275]
[1752661355609,0.008,119310.0,119300.0,6.88995275]
[1752661356036,0.00808459,119310.0,119300.0,1.88995275]
[1752661356258,0.0002,119320.0,119310.0,0.19277426]
[1752661356483,0.0002,119320.0,119310.0,6.66015693]
[1752661356700,0.03112366,119330.0,119320.0,1.24975917]
[1752661356919,0.03321366,119330.0,119320.0,0.43040839]
[1752661357131,0.03644366,119330.0,119320.0,0.99439892]
[1752661357360,0.03644366,119330.0,119320.0,1.23336092]
[1752661357589,0.03644366,119330.0,119320.0,1.69891245]
[1752661357798,0.03321366,119330.0,119320.0,1.26046192]
[1752661357986,0.03321366,119330.0,119320.0,1.26346192]
[1752661360570,0.03321366,119330.0,119320.0,1.18337192]
[1752661360772,0.03321366,119330.0,119320.0,1.02449992]
[1752661361183,0.03321366,119330.0,119320.0,1.31866492]
[1752661361436,0.04159315,119330.0,119320.0,1.02449992]
[1752661361656,0.09358241,119330.0,119320.0,1.02250999]
[1752661361862,0.09358234,119330.0,119320.0,1.02251006]
[1752661362083,0.25280585,119330.0,119320.0,0.21615028]
[1752661363161,0.25280585,119330.0,119320.0,0.22461588]
[1752661363783,0.25280585,119330.0,119320.0,0.09697588]
[1752661364000,0.69125638,119330.0,119320.0,0.08851028]
[1752661364214,0.69125638,119330.0,119320.0,0.21615028]
[1752661364839,0.69125638,119330.0,119320.0,0.21315028]
[1752661365050,0.69125638,119330.0,119320.0,0.21515028]
[1752661365474,0.25280585,119330.0,119320.0,0.21515028]
[1752661370312,0.25280585,119330.0,119320.0,0.08751028]
[1752661370531,0.25280585,119330.0,119320.0,0.21515028]
[1752661370732,0.69125638,119330.0,119320.0,0.21515028]
[1752661370878,0.25280585,119330.0,119320.0,0.21515028]
[1752661371095,0.69125638,119330.0,119320.0,0.21515028]
[1752661371498,0.25280585,119330.0,119320.0,0.21515028]
[1752661374550,0.25280585,119330.0,119320.0,0.08751028]
[1752661374774,0.25280585,119330.0,119320.0,0.002]
[1752661374775,0.69125638,119330.0,119320.0,0.002]
[1752661375255,0.69125638,119330.0,119320.0,1e-08]
[1752661375825,0.69125638,119330.0,119310.0,0.12779133]
[1752661375826,0.20699717,119320.0,119310.0,0.12779133]
[1752661376026,0.6505977,119320.0,119310.0,0.12779133]
[1752661377044,0.6505977,119320.0,119310.0,0.00015133]
[1752661377281,0.17601192,119310.0,119300.0,0.12764]
[1752661377514,0.65111245,119310.0,119300.0,0.12779146]
[1752661378159,0.65111245,119310.0,119300.0,0.00015146]
[1752661378364,0.65311245,119310.0,119300.0,1e-08]
[1752661380265,0.65111245,119310.0,119300.0,1e-08]
[1752661381267,0.65311245,119310.0,119300.0,1e-08]
[1752661382019,0.78075245,119310.0,119300.0,1e-08]
[1752661384858,0.21466192,119310.0,119300.0,1e-08]
[1752661385076,0.78075245,119310.0,119300.0,1e-08]
[1752661388876,0.78067831,119310.0,119300.0,1e-08]
[1752661396543,0.78071831,119310.0,119300.0,1e-08]
[1752661398621,0.65303831,119310.0,119300.0,1e-08]
[1752661400199,0.78067831,119310.0,119300.0,1e-08]
[1752661406126,0.65303831,119310.0,119300.0,1e-08]
[1752661406325,0.65270472,119310.0,119300.0,1e-08]
[1752661411729,0.18267419,119310.0,119300.0,1e-08]
[1752661411963,0.18267419,119310.0,119300.0,0.00200001]
[1752661411964,0.17962419,119310.0,119300.0,0.00200001]
[1752661412218,0.17962419,119310.0,119300.0,0.01790001]
[1752661413299,0.17962419,119310.0,119300.0,0.14554001]
[1752661413512,0.17962419,119310.0,119300.0,0.14862001]
[1752661414669,0.17962419,119310.0,119300.0,0.16472001]
[1752661414899,0.17760419,119310.0,119300.0,0.16472001]
[1752661416401,0.17760419,119310.0,119300.0,0.25023029]
[1752661417259,0.17760419,119310.0,119300.0,0.68868082]
[1752661418170,0.1859855,119310.0,119300.0,0.68868082]
[1752661418586,0.17760419,119310.0,119300.0,0.68868082]
[1752661420113,0.17560419,119310.0,119300.0,0.68868082]
[1752661420328,0.17760419,119310.0,119300.0,0.68868082]
[1752661420557,0.17760419,119310.0,119300.0,0.86470749]
[1752661420558,0.18639281,119310.0,119300.0,0.86470749]
[1752661420788,0.20315515,119310.0,119300.0,0.8730895]
[1752661421227,0.20315494,119310.0,119300.0,0.88147144]
[1752661421667,0.20315494,119310.0,119300.0,0.8730895]
[1752661421887,0.20315494,119310.0,119300.0,0.88147144]
[1752661422363,0.20315494,119310.0,119300.0,0.8730895]
[1752661422579,0.21153646,119310.0,119300.0,0.86470756]
[1752661422794,0.21153646,119310.0,119300.0,0.68868082]
[1752661423039,0.2031555,119310.0,119300.0,0.68868082]
[1752661423253,0.2031555,119310.0,119300.0,0.70544519]
[1752661423945,0.2031555,119310.0,119300.0,0.69706304]
[1752661424157,0.002,119310.0,119300.0,0.88147158]
[1752661424369,0.1863926,119310.0,119300.0,0.88147165]
[1752661424587,0.1863926,119310.0,119300.0,0.88985352]
[1752661424803,0.01038096,119310.0,119300.0,0.89823525]
[1752661425258,0.01876199,119310.0,119300.0,0.89823525]
[1752661425695,0.18639267,119310.0,119300.0,0.89823532]
[1752661425902,0.19477398,119310.0,119300.0,0.88985352]
[1752661426120,0.19477398,119310.0,119300.0,0.88147165]
[1752661426433,0.20315543,119310.0,119300.0,0.87308971]
[1752661426859,0.20315543,119310.0,119300.0,0.87308978]
[1752661427034,0.20315543,119310.0,119300.0,0.88147186]
[1752661427192,0.19477398,119310.0,119300.0,0.88147186]
[1752661427398,0.1780115,119310.0,119300.0,0.8898538]
[1752661427628,0.002,119310.0,119300.0,0.92285442]
[1752661427829,0.01038096,119310.0,119300.0,0.92285442]
[1752661428030,0.01876206,119310.0,119300.0,0.92285442]
[1752661428251,0.19477384,119310.0,119300.0,0.90609075]
[1752661428575,0.19477384,119310.0,119300.0,0.91447276]
[1752661428851,0.20315522,119310.0,119300.0,0.91443269]
[1752661429052,0.19477384,119310.0,119300.0,0.93958969]
[1752661429266,0.1863926,119310.0,119300.0,0.93958976]
[1752661429482,0.002,119310.0,119300.0,0.92281421]
[1752661429738,0.01038089,119310.0,119300.0,0.94797121]
[1752661429947,0.002,119310.0,119300.0,0.94797121]
[1752661430078,0.002,119310.0,119300.0,1.09797121]
[1752661430502,0.19276383,119320.0,119310.0,0.18439323]
[1752661430697,0.1987261,119330.0,119320.0,0.19901649]
[1752661430899,0.21548571,119330.0,119320.0,0.87240859]
[1752661431141,0.2238652,119330.0,119320.0,0.88078913]
[1752661431356,0.2238652,119330.0,119320.0,0.87240859]
[1752661432101,0.2238652,119330.0,119320.0,0.86402798]
[1752661432314,0.23224518,119330.0,119320.0,0.86402805]
[1752661432537,0.2406253,119330.0,119320.0,0.86402805]
[1752661432948,0.23224532,119330.0,119320.0,0.74486445]
[1752661433169,0.2238652,119330.0,119320.0,0.88080506]
[1752661433378,0.23224525,119330.0,119320.0,0.88080506]
[1752661433607,0.03112366,119330.0,119320.0,1.48601646]
[1752661433776,0.03950315,119330.0,119320.0,1.48601646]
[1752661433977,0.03112366,119330.0,119320.0,1.51116846]
[1752661434152,0.03950315,119330.0,119320.0,1.51116846]
[1752661434370,0.04788278,119330.0,119320.0,1.51116846]
[1752661434736,0.03950315,119330.0,119320.0,1.51116846]
[1752661435137,0.03112366,119330.0,119320.0,1.51116846]
[1752661435778,0.03950315,119330.0,119320.0,1.51116846]
[1752661435980,0.03112366,119330.0,119320.0,1.51116846]
[1752661436206,0.03950315,119330.0,119320.0,1.51116846]
[1752661436408,0.22386485,119330.0,119320.0,1.51116846]
[1752661436608,0.22386492,119330.0,119320.0,1.51116846]
[1752661436872,0.22386492,119330.0,119320.0,1.07271793]
[1752661437072,0.22386492,119330.0,119320.0,1.072718]
[1752661437361,0.22386492,119330.0,119320.0,1.08109833]
[1752661437589,0.22386492,119330.0,119320.0,1.072718]
[1752661438102,0.22386485,119330.0,119320.0,1.08109833]
[1752661438310,0.23224462,119330.0,119320.0,1.08109833]
[1752661438523,0.22386485,119330.0,119320.0,1.08109833]
[1752661439344,0.22386485,119330.0,119320.0,1.37529833]
[1752661439558,0.23224462,119330.0,119320.0,1.37529833]
[1752661439762,0.22386485,119330.0,119320.0,1.37529833]
[1752661439973,0.22386485,119330.0,119320.0,0.9368478]
[1752661440173,0.22386485,119330.0,119320.0,1.37529833]
[1752661440388,0.23224469,119330.0,119320.0,1.37529833]
[1752661440598,0.04788271,119330.0,119320.0,1.37529833]
[1752661440808,0.04788299,119330.0,119320.0,1.81374886]
[1752661441011,0.21548543,119330.0,119320.0,1.37529833]
[1752661441444,0.21548543,119330.0,119320.0,1.366918]
[1752661441651,0.22386534,119330.0,119320.0,1.3585376]
[1752661441859,0.22386541,119330.0,119320.0,1.35853753]
[1752661442070,0.22386541,119330.0,119320.0,0.92008707]
[1752661442272,0.22386541,119330.0,119320.0,1.35015706]
[1752661442499,0.22386541,119330.0,119320.0,1.2309776]
[1752661442723,0.22386534,119330.0,119320.0,1.03821921]
[1752661442932,0.22386534,119330.0,119320.0,0.51763668]
[1752661442933,0.286129,119330.0,119320.0,0.51763668]
[1752661443145,0.304199,119330.0,119320.0,0.37971028]
[1752661443357,0.320599,119330.0,119320.0,0.50723028]
[1752661443790,0.320599,119330.0,119320.0,0.51556579]
[1752661444231,0.25195599,119330.0,119320.0,0.50723028]
[1752661445327,0.25195599,119330.0,119320.0,0.21303028]
[1752661446502,0.25195599,119330.0,119320.0,0.65148081]
[1752661447038,0.25195599,119330.0,119320.0,0.21303028]
[1752661447598,0.69040652,119330.0,119320.0,0.21303028]
[1752661448486,0.25195599,119330.0,119320.0,0.21303028]
[1752661451948,0.25195599,119330.0,119320.0,0.08551028]
[1752661452190,0.25195599,119330.0,119320.0,0.21303028]
[1752661462530,0.69040652,119330.0,119320.0,0.21303028]
[1752661464970,0.18439309,119310.0,119300.0,0.67409054]
[1752661465190,0.18439309,119310.0,119300.0,0.88921082]
[1752661466196,0.18439309,119310.0,119300.0,0.89121082]
[1752661467790,0.17433366,119310.0,119300.0,0.89121082]
[1752661468079,0.18271504,119310.0,119300.0,1.06723756]
[1752661468497,0.18271504,119310.0,119300.0,1.07561964]
[1752661469762,0.19109656,119310.0,119300.0,1.08400165]
[1752661469973,0.19109656,119310.0,119300.0,1.09238359]
[1752661470399,0.19109656,119310.0,119300.0,1.10076546]
[1752661470601,0.19109656,119310.0,119300.0,1.10076511]
[1752661470805,0.01508408,119310.0,119300.0,1.10076476]
[1752661470946,0.02346539,119310.0,119300.0,1.10076476]
[1752661471154,0.03184677,119310.0,119300.0,1.10076476]
[1752661471353,0.02346539,119310.0,119300.0,1.10076476]
[1752661471557,0.04022822,119310.0,119300.0,1.10076476]
[1752661471819,0.03184677,119310.0,119300.0,1.10076476]
[1752661472437,0.19947731,119310.0,119300.0,1.09238303]
[1752661473607,0.19109635,119310.0,119300.0,1.08400123]
[1752661473989,0.18439323,119310.0,119300.0,1.06723763]
[1752661474255,0.17601192,119310.0,119300.0,1.06723763]
[1752661475617,0.16979054,119310.0,119300.0,0.29072029]
[1752661475850,0.16979054,119310.0,119300.0,0.85669082]
[1752661476243,0.16979054,119310.0,119300.0,0.85991082]
[1752661477881,0.15973112,119310.0,119300.0,0.85991082]
[1752661480769,0.15757112,119310.0,119300.0,0.87561082]
[1752661483235,0.15757112,119310.0,119300.0,0.89121082]
[1752661484234,0.15757112,119310.0,119300.0,0.87561082]
[1752661484444,0.15757112,119310.0,119300.0,1.04325541]
[1752661485464,0.15757112,119310.0,119300.0,0.87561082]
[1752661486055,0.15757112,119310.0,119300.0,0.67449082]
[1752661487722,0.1475117,119310.0,119300.0,0.67449082]
[1752661487941,0.1475117,119310.0,119300.0,0.65879082]
[1752661491193,0.1475117,119310.0,119300.0,0.67439082]
[1752661491610,0.1475117,119310.0,119300.0,0.84203541]
[1752661491822,0.1475117,119310.0,119300.0,0.85041763]
[1752661492015,0.1475117,119310.0,119300.0,0.67439082]
[1752661493267,0.1475117,119310.0,119300.0,0.65879082]